[Event "*** Titled Tuesday Blitz"]
[Site "Chess.com"]
[Date "2020.04.07"]
[Round "4"]
[White "MikeSailer"]
[Black "isla88"]
[Result "0-1"]
[WhiteElo "2045"]
[BlackElo "2280"]
[TimeControl "180+1"]
[EndTime "13:40:13 PDT"]
[Termination "isla88 won on time"]

1. d4 {[%clk 0:03:00.9]} 1... Nf6 {[%clk 0:02:58.5]} 2. Bf4 {[%clk 0:03:01]}
2... d6 {[%clk 0:02:56.8]} 3. e3 {[%clk 0:03:01.4]} 3... h6 {[%clk 0:02:56.4]}
4. Nf3 {[%clk 0:03:01.5]} 4... g5 {[%clk 0:02:56.1]} 5. Bg3 {[%clk 0:03:01]}
5... Nh5 {[%clk 0:02:55.7]} 6. c4 {[%clk 0:02:55.7]} 6... Bg7 {[%clk 0:02:55.4]}
7. Nc3 {[%clk 0:02:55.6]} 7... e6 {[%clk 0:02:51.2]} 8. Nd2 {[%clk 0:02:45.4]}
8... Nxg3 {[%clk 0:02:50.1]} 9. hxg3 {[%clk 0:02:45.1]} 9... e5 {[%clk 0:02:50]}
10. dxe5 {[%clk 0:02:30.9]} 10... dxe5 {[%clk 0:02:47.7]} 11. Be2 {[%clk
0:02:30.2]} 11... Nc6 {[%clk 0:02:41.8]} 12. a3 {[%clk 0:02:18.3]} 12... Be6
{[%clk 0:02:36.2]} 13. Qc2 {[%clk 0:02:15.9]} 13... Qe7 {[%clk 0:02:20.9]} 14.
O-O-O {[%clk 0:02:07.8]} 14... O-O-O {[%clk 0:02:19.3]} 15. Bf3 {[%clk
0:01:48.2]} 15... f5 {[%clk 0:02:08.9]} 16. Bxc6 {[%clk 0:01:45.3]} 16... bxc6
{[%clk 0:02:09.8]} 17. Qa4 {[%clk 0:01:41.6]} 17... Qc5 {[%clk 0:02:05.2]} 18.
Qa6+ {[%clk 0:01:21.3]} 18... Kb8 {[%clk 0:02:04.2]} 19. Na4 {[%clk 0:01:16.8]}
19... Qe7 {[%clk 0:01:51.7]} 20. Qxc6 {[%clk 0:01:06.4]} 20... Bd7 {[%clk
0:01:51.4]} 21. Qa6 {[%clk 0:01:06.2]} 21... e4 {[%clk 0:01:44.8]} 22. Nb3
{[%clk 0:01:01.7]} 22... Bxa4 {[%clk 0:01:08.4]} 23. Qxa4 {[%clk 0:00:58.7]}
23... Qf6 {[%clk 0:01:07.9]} 24. Nd4 {[%clk 0:00:51.6]} 24... c5 {[%clk
0:01:07.2]} 25. Qb5+ {[%clk 0:00:49.9]} 25... Ka8 {[%clk 0:01:01.8]} 26. Qxc5
{[%clk 0:00:46.1]} 26... Rc8 {[%clk 0:00:59.4]} 27. Qd5+ {[%clk 0:00:42.7]}
27... Kb8 {[%clk 0:00:56.7]} 28. Rd2 {[%clk 0:00:30.1]} 28... Rhd8 {[%clk
0:00:55.8]} 29. Qb5+ {[%clk 0:00:29.7]} 29... Ka8 {[%clk 0:00:55.6]} 30. Rhd1
{[%clk 0:00:26.8]} 30... f4 {[%clk 0:00:54.7]} 31. gxf4 {[%clk 0:00:25.9]} 31...
gxf4 {[%clk 0:00:54.4]} 32. Qb3 {[%clk 0:00:10]} 32... Qf7 {[%clk 0:00:53.4]}
33. Kb1 {[%clk 0:00:07.8]} 33... Rxc4 {[%clk 0:00:51.8]} 34. Nb5 {[%clk
0:00:06.4]} 34... Rc1+ {[%clk 0:00:50.9]} 35. Rxc1 {[%clk 0:00:05.8]} 35... Qxb3
{[%clk 0:00:49.3]} 36. Nc7+ {[%clk 0:00:05.8]} 36... Kb7 {[%clk 0:00:48.7]} 37.
Nb5 {[%clk 0:00:01.4]} 37... Rxd2 {[%clk 0:00:47.5]} 38. Nd6+ {[%clk 0:00:01.7]}
38... Rxd6 {[%clk 0:00:46.7]} 0-1

[Event "*** Titled Tuesday Blitz"]
[Site "Chess.com"]
[Date "2020.04.07"]
[Round "4"]
[White "King_of_the_wing"]
[Black "Schachmalanders"]
[Result "0-1"]
[WhiteElo "2027"]
[BlackElo "2308"]
[TimeControl "180+1"]
[EndTime "13:40:14 PDT"]
[Termination "Schachmalanders won on time"]

1. e4 {[%clk 0:03:00.6]} 1... c5 {[%clk 0:02:59.4]} 2. Nf3 {[%clk 0:03:00.6]}
2... d6 {[%clk 0:02:58.9]} 3. d4 {[%clk 0:03:01]} 3... cxd4 {[%clk 0:02:59.8]}
4. Nxd4 {[%clk 0:03:01.1]} 4... Nf6 {[%clk 0:03:00.5]} 5. Nc3 {[%clk 0:03:01.6]}
5... a6 {[%clk 0:03:00.9]} 6. Bg5 {[%clk 0:03:01]} 6... e6 {[%clk 0:03:00.7]} 7.
f4 {[%clk 0:03:00.1]} 7... h6 {[%clk 0:03:00.9]} 8. Bxf6 {[%clk 0:02:58]} 8...
Qxf6 {[%clk 0:02:59.1]} 9. Qd2 {[%clk 0:02:56.6]} 9... Nc6 {[%clk 0:02:57.4]}
10. Nxc6 {[%clk 0:02:50.4]} 10... bxc6 {[%clk 0:02:58.3]} 11. Bd3 {[%clk
0:02:39.4]} 11... Be7 {[%clk 0:02:52.8]} 12. O-O {[%clk 0:02:37.3]} 12... O-O
{[%clk 0:02:51.9]} 13. e5 {[%clk 0:02:32.3]} 13... dxe5 {[%clk 0:02:49.1]} 14.
Ne4 {[%clk 0:02:32.4]} 14... Qh4 {[%clk 0:02:42.9]} 15. g3 {[%clk 0:02:12.9]}
15... Qh3 {[%clk 0:02:32.5]} 16. fxe5 {[%clk 0:02:11.3]} 16... c5 {[%clk
0:02:24.4]} 17. Rf4 {[%clk 0:01:54.4]} 17... Bb7 {[%clk 0:02:21.6]} 18. Bf1
{[%clk 0:01:54.2]} 18... Qh5 {[%clk 0:02:19.9]} 19. Qc3 {[%clk 0:01:36.8]} 19...
Rad8 {[%clk 0:02:07.9]} 20. Re1 {[%clk 0:00:55.1]} 20... Rd1 {[%clk 0:01:58]}
21. g4 {[%clk 0:00:32.8]} 21... Rxe1 {[%clk 0:01:30.2]} 22. gxh5 {[%clk
0:00:28.7]} 22... Rxe4 {[%clk 0:01:30.3]} 23. Rxe4 {[%clk 0:00:28]} 23... Bxe4
{[%clk 0:01:31.2]} 24. Bxa6 {[%clk 0:00:23]} 24... Rd8 {[%clk 0:01:28.4]} 25.
Bd3 {[%clk 0:00:23.2]} 25... Bf3 {[%clk 0:01:27.3]} 26. Bh7+ {[%clk 0:00:17.6]}
26... Kxh7 {[%clk 0:01:27.7]} 27. Qxf3 {[%clk 0:00:18.2]} 27... Kg8 {[%clk
0:01:28.6]} 28. a4 {[%clk 0:00:17.9]} 28... c4 {[%clk 0:01:26.9]} 29. a5 {[%clk
0:00:11.6]} 29... Bc5+ {[%clk 0:01:26.7]} 30. Kf1 {[%clk 0:00:12.1]} 30... Rd2
{[%clk 0:01:22.5]} 31. Qc6 {[%clk 0:00:12.3]} 31... Bd4 {[%clk 0:01:20.9]} 32.
Qxc4 {[%clk 0:00:11.7]} 32... Bxe5 {[%clk 0:01:16.4]} 33. a6 {[%clk 0:00:09.8]}
33... Bd4 {[%clk 0:01:13.5]} 34. b4 {[%clk 0:00:05.2]} 34... e5 {[%clk
0:01:11.5]} 35. b5 {[%clk 0:00:05.2]} 35... Rd1+ {[%clk 0:01:08]} 36. Ke2 {[%clk
0:00:05.1]} 36... Rb1 {[%clk 0:01:06.9]} 37. Qc8+ {[%clk 0:00:04]} 37... Kh7
{[%clk 0:01:06.8]} 38. c3 {[%clk 0:00:04.5]} 38... Rb2+ {[%clk 0:01:03.4]} 39.
Kd3 {[%clk 0:00:03.6]} 39... Bf2 {[%clk 0:01:04]} 0-1

[Event "*** Titled Tuesday Blitz"]
[Site "Chess.com"]
[Date "2020.04.07"]
[Round "4"]
[White "AminMolaei"]
[Black "Witik"]
[Result "1/2-1/2"]
[WhiteElo "2527"]
[BlackElo "2707"]
[TimeControl "180+1"]
[EndTime "13:40:15 PDT"]
[Termination "Game drawn by repetition"]

1. d4 {[%clk 0:03:00.9]} 1... d5 {[%clk 0:02:59.1]} 2. c4 {[%clk 0:02:59.9]}
2... e6 {[%clk 0:02:59.3]} 3. c5 {[%clk 0:02:59.5]} 3... b6 {[%clk 0:02:58.3]}
4. cxb6 {[%clk 0:02:58.8]} 4... axb6 {[%clk 0:02:59.2]} 5. Nc3 {[%clk
0:02:58.9]} 5... Nf6 {[%clk 0:02:58.6]} 6. Nf3 {[%clk 0:02:58.5]} 6... c5 {[%clk
0:02:58.7]} 7. e3 {[%clk 0:02:59]} 7... Bd6 {[%clk 0:02:55.2]} 8. Be2 {[%clk
0:02:58.6]} 8... O-O {[%clk 0:02:54]} 9. O-O {[%clk 0:02:58.6]} 9... Nc6 {[%clk
0:02:53]} 10. b3 {[%clk 0:02:58.5]} 10... Bb7 {[%clk 0:02:51.3]} 11. Bb2 {[%clk
0:02:57.9]} 11... Rc8 {[%clk 0:02:51.4]} 12. Nb5 {[%clk 0:02:57.6]} 12... Bb8
{[%clk 0:02:50.7]} 13. Rc1 {[%clk 0:02:57.6]} 13... Ne4 {[%clk 0:02:50.5]} 14.
h3 {[%clk 0:02:50.9]} 14... f5 {[%clk 0:02:32.3]} 15. Nd2 {[%clk 0:02:49.9]}
15... cxd4 {[%clk 0:02:18.3]} 16. Nxe4 {[%clk 0:02:48.7]} 16... fxe4 {[%clk
0:02:12.8]} 17. Nxd4 {[%clk 0:02:10.8]} 17... Qd6 {[%clk 0:01:58.6]} 18. g3
{[%clk 0:02:10.5]} 18... Rxf2 {[%clk 0:01:48.1]} 19. Rxf2 {[%clk 0:02:02.3]}
19... Qxg3+ {[%clk 0:01:48]} 20. Kf1 {[%clk 0:01:24.7]} 20... Qxh3+ {[%clk
0:01:38.9]} 21. Kg1 {[%clk 0:01:24]} 21... Qg3+ {[%clk 0:00:33.4]} 22. Kf1
{[%clk 0:01:21.9]} 22... Qh3+ {[%clk 0:00:30.4]} 23. Ke1 {[%clk 0:01:03.8]}
23... Bg3 {[%clk 0:00:27.7]} 24. Nxc6 {[%clk 0:01:03.3]} 24... Bxf2+ {[%clk
0:00:23.9]} 25. Kxf2 {[%clk 0:00:55.9]} 25... Qh4+ {[%clk 0:00:22.8]} 26. Kg2
{[%clk 0:00:47.9]} 26... Qg5+ {[%clk 0:00:22.7]} 27. Kf2 {[%clk 0:00:40.4]}
27... Qh4+ {[%clk 0:00:15.2]} 28. Kg2 {[%clk 0:00:33.1]} 28... Qg5+ {[%clk
0:00:14.9]} 29. Kh2 {[%clk 0:00:28.2]} 29... Qh4+ {[%clk 0:00:12.7]} 30. Kg2
{[%clk 0:00:19.9]} 1/2-1/2

[Event "*** Titled Tuesday Blitz"]
[Site "Chess.com"]
[Date "2020.04.07"]
[Round "4"]
[White "JoakimVonAnd"]
[Black "levallem"]
[Result "0-1"]
[WhiteElo "2484"]
[BlackElo "2116"]
[TimeControl "180+1"]
[EndTime "13:40:15 PDT"]
[Termination "levallem won by resignation"]

1. d4 {[%clk 0:03:00.9]} 1... Nf6 {[%clk 0:02:57.5]} 2. c4 {[%clk 0:03:00.7]}
2... e6 {[%clk 0:02:57.9]} 3. Nc3 {[%clk 0:03:00.7]} 3... b6 {[%clk 0:02:56.1]}
4. e4 {[%clk 0:02:59.9]} 4... Bb7 {[%clk 0:02:55.3]} 5. e5 {[%clk 0:02:44.3]}
5... Ne4 {[%clk 0:02:53.9]} 6. Qf3 {[%clk 0:02:36.9]} 6... Bb4 {[%clk
0:02:48.1]} 7. Bd2 {[%clk 0:02:23.3]} 7... Nxd2 {[%clk 0:01:51]} 8. Qxb7 {[%clk
0:02:21.3]} 8... Nc6 {[%clk 0:01:50.7]} 9. Kxd2 {[%clk 0:02:17.3]} 9... a5
{[%clk 0:01:50.5]} 10. d5 {[%clk 0:02:09.6]} 10... Ra7 {[%clk 0:01:46.2]} 11.
dxc6 {[%clk 0:02:09.4]} 11... Rxb7 {[%clk 0:01:44]} 12. cxb7 {[%clk 0:02:10.3]}
12... Qb8 {[%clk 0:01:42.4]} 13. Nf3 {[%clk 0:02:06]} 13... Qxb7 {[%clk
0:01:42.1]} 14. Bd3 {[%clk 0:02:06.1]} 14... O-O {[%clk 0:01:41.2]} 15. a3
{[%clk 0:02:01]} 15... Bxc3+ {[%clk 0:01:39.6]} 16. Kxc3 {[%clk 0:02:01.9]}
16... d5 {[%clk 0:01:39.5]} 17. Rad1 {[%clk 0:01:51.9]} 17... c5 {[%clk
0:01:27.8]} 18. Kc2 {[%clk 0:01:31.6]} 18... dxc4 {[%clk 0:01:21.8]} 19. Bxc4
{[%clk 0:01:30.5]} 19... b5 {[%clk 0:01:22.1]} 20. Be2 {[%clk 0:01:17.2]} 20...
c4 {[%clk 0:01:15.6]} 21. Rd4 {[%clk 0:01:12.7]} 21... h6 {[%clk 0:01:06.6]} 22.
Rhd1 {[%clk 0:01:12.4]} 22... g5 {[%clk 0:01:05]} 23. h4 {[%clk 0:01:09.5]}
23... f6 {[%clk 0:00:54.8]} 24. exf6 {[%clk 0:01:07.2]} 24... Rxf6 {[%clk
0:00:54.7]} 25. hxg5 {[%clk 0:01:07.1]} 25... hxg5 {[%clk 0:00:53.9]} 26. Rd8+
{[%clk 0:00:47.9]} 26... Rf8 {[%clk 0:00:52.5]} 27. Rxf8+ {[%clk 0:00:46.3]}
27... Kxf8 {[%clk 0:00:53.4]} 28. Rd4 {[%clk 0:00:41.1]} 28... Qh7+ {[%clk
0:00:37.5]} 29. Kc1 {[%clk 0:00:16.8]} 29... Qh1+ {[%clk 0:00:36.2]} 30. Kc2
{[%clk 0:00:17.2]} 30... Qxg2 {[%clk 0:00:36]} 31. Nd2 {[%clk 0:00:16.9]} 31...
Qxf2 {[%clk 0:00:34.5]} 32. Bg4 {[%clk 0:00:17.5]} 32... Qxd4 {[%clk 0:00:33.7]}
33. Bxe6 {[%clk 0:00:15.5]} 0-1

[Event "*** Titled Tuesday Blitz"]
[Site "Chess.com"]
[Date "2020.04.07"]
[Round "4"]
[White "artooon"]
[Black "StoreySniper"]
[Result "1/2-1/2"]
[WhiteElo "2711"]
[BlackElo "2530"]
[TimeControl "180+1"]
[EndTime "13:40:16 PDT"]
[Termination "Game drawn by repetition"]

1. e4 {[%clk 0:03:00.9]} 1... g6 {[%clk 0:02:59.2]} 2. d4 {[%clk 0:03:00.4]}
2... Bg7 {[%clk 0:02:59.3]} 3. Nc3 {[%clk 0:03:00.9]} 3... c5 {[%clk 0:02:59.5]}
4. Be3 {[%clk 0:02:58.8]} 4... Qa5 {[%clk 0:02:57.1]} 5. Ne2 {[%clk 0:02:57.1]}
5... Nf6 {[%clk 0:02:56.8]} 6. f3 {[%clk 0:02:57.2]} 6... d6 {[%clk 0:02:55.1]}
7. Qd2 {[%clk 0:02:56.7]} 7... Nc6 {[%clk 0:02:55.2]} 8. h4 {[%clk 0:02:54.8]}
8... h5 {[%clk 0:02:45]} 9. O-O-O {[%clk 0:02:46.5]} 9... Bd7 {[%clk 0:02:33.6]}
10. Kb1 {[%clk 0:02:34.3]} 10... O-O-O {[%clk 0:02:27.3]} 11. d5 {[%clk
0:02:23.3]} 11... Ne5 {[%clk 0:02:18.7]} 12. Nc1 {[%clk 0:02:23.3]} 12... a6
{[%clk 0:02:04.3]} 13. Nb3 {[%clk 0:02:20.4]} 13... Qc7 {[%clk 0:02:04.1]} 14.
a4 {[%clk 0:02:13.2]} 14... Kb8 {[%clk 0:02:02.9]} 15. Be2 {[%clk 0:02:07.6]}
15... Ka8 {[%clk 0:02:01.6]} 16. a5 {[%clk 0:02:02.9]} 16... Rb8 {[%clk
0:01:54.9]} 17. f4 {[%clk 0:01:49.6]} 17... Neg4 {[%clk 0:01:53.9]} 18. e5
{[%clk 0:01:49.7]} 18... Ne8 {[%clk 0:01:39.5]} 19. Ne4 {[%clk 0:01:36.3]} 19...
Bf5 {[%clk 0:01:09.7]} 20. Bf3 {[%clk 0:01:31]} 20... Nxe3 {[%clk 0:00:59]} 21.
Qxe3 {[%clk 0:01:31.9]} 21... c4 {[%clk 0:00:54.8]} 22. Nbd2 {[%clk 0:01:15.8]}
22... Rc8 {[%clk 0:00:48.3]} 23. Ng3 {[%clk 0:01:06.9]} 23... Bxc2+ {[%clk
0:00:35.3]} 24. Kxc2 {[%clk 0:01:06]} 24... Qxa5 {[%clk 0:00:35.9]} 25. Ra1
{[%clk 0:01:05]} 25... Qb4 {[%clk 0:00:29.7]} 26. Rhe1 {[%clk 0:00:58.4]} 26...
Nc7 {[%clk 0:00:29.1]} 27. Qc3 {[%clk 0:00:57.7]} 27... Qc5 {[%clk 0:00:28.4]}
28. Qe3 {[%clk 0:00:37]} 28... Qb4 {[%clk 0:00:27.2]} 29. Qa3 {[%clk 0:00:35.8]}
29... Qb6 {[%clk 0:00:26]} 30. Qe3 {[%clk 0:00:31.4]} 30... Qb4 {[%clk
0:00:25.2]} 1/2-1/2

[Event "*** Titled Tuesday Blitz"]
[Site "Chess.com"]
[Date "2020.04.07"]
[Round "4"]
[White "AllStarShark"]
[Black "maxip32"]
[Result "1-0"]
[WhiteElo "2337"]
[BlackElo "2474"]
[TimeControl "180+1"]
[EndTime "13:40:19 PDT"]
[Termination "AllStarShark won by resignation"]

1. d4 {[%clk 0:03:00.9]} 1... Nf6 {[%clk 0:02:59.7]} 2. Bg5 {[%clk 0:03:00.5]}
2... c5 {[%clk 0:02:56.9]} 3. Nc3 {[%clk 0:02:59.6]} 3... cxd4 {[%clk
0:02:55.8]} 4. Qxd4 {[%clk 0:03:00.5]} 4... Nc6 {[%clk 0:02:55.8]} 5. Qh4 {[%clk
0:03:00.1]} 5... e6 {[%clk 0:02:53.4]} 6. O-O-O {[%clk 0:02:58.2]} 6... Be7
{[%clk 0:02:51.5]} 7. e4 {[%clk 0:02:56.6]} 7... d6 {[%clk 0:02:48.5]} 8. f4
{[%clk 0:02:55.9]} 8... Qa5 {[%clk 0:02:43.5]} 9. Nf3 {[%clk 0:02:54.9]} 9...
Bd7 {[%clk 0:02:22.4]} 10. Nd2 {[%clk 0:02:25.1]} 10... h6 {[%clk 0:01:45]} 11.
Nc4 {[%clk 0:02:22]} 11... Qd8 {[%clk 0:00:43.7]} 12. Nxd6+ {[%clk 0:02:02.2]}
12... Kf8 {[%clk 0:00:42.9]} 13. e5 {[%clk 0:01:53.6]} 13... Ng8 {[%clk
0:00:19.5]} 14. Bxe7+ {[%clk 0:01:49.3]} 14... Ngxe7 {[%clk 0:00:20.4]} 15. Nxb7
{[%clk 0:01:34.4]} 15... Qc7 {[%clk 0:00:17.7]} 16. Nc5 {[%clk 0:01:20.1]} 16...
Be8 {[%clk 0:00:13.9]} 17. N5e4 {[%clk 0:00:59.4]} 17... Rb8 {[%clk 0:00:10.8]}
18. Bb5 {[%clk 0:00:43.1]} 18... Qb6 {[%clk 0:00:08.6]} 19. Qf2 {[%clk
0:00:35.7]} 19... Qb7 {[%clk 0:00:07.5]} 20. Nd6 {[%clk 0:00:32.1]} 20... Qc7
{[%clk 0:00:05.7]} 21. Nxe8 {[%clk 0:00:30.4]} 21... Rxe8 {[%clk 0:00:05.8]} 22.
Qc5 {[%clk 0:00:27.9]} 22... Kg8 {[%clk 0:00:05.1]} 23. Rd6 {[%clk 0:00:27.1]}
23... Rc8 {[%clk 0:00:03.2]} 24. Rhd1 {[%clk 0:00:26.2]} 24... Kh7 {[%clk
0:00:02.5]} 25. Bxc6 {[%clk 0:00:23.3]} 25... Qb6 {[%clk 0:00:01.3]} 26. Qxb6
{[%clk 0:00:22.3]} 1-0

[Event "*** Titled Tuesday Blitz"]
[Site "Chess.com"]
[Date "2020.04.07"]
[Round "4"]
[White "Nastya_Rakhmangulova"]
[Black "kingmonkey2006"]
[Result "1-0"]
[WhiteElo "2369"]
[BlackElo "2622"]
[TimeControl "180+1"]
[EndTime "13:40:23 PDT"]
[Termination "Nastya_Rakhmangulova won by resignation"]

1. e4 {[%clk 0:03:00.9]} 1... c5 {[%clk 0:02:59.6]} 2. Nf3 {[%clk 0:03:01.2]}
2... d6 {[%clk 0:03:00.2]} 3. d4 {[%clk 0:03:01.6]} 3... cxd4 {[%clk 0:03:01.1]}
4. Nxd4 {[%clk 0:03:02.4]} 4... Nf6 {[%clk 0:03:01.8]} 5. Nc3 {[%clk 0:03:03]}
5... a6 {[%clk 0:03:02.5]} 6. Bg5 {[%clk 0:03:03.6]} 6... e6 {[%clk 0:03:02.5]}
7. f4 {[%clk 0:03:04.1]} 7... h6 {[%clk 0:03:03]} 8. Bh4 {[%clk 0:03:02.5]} 8...
Nbd7 {[%clk 0:03:03.4]} 9. Qd2 {[%clk 0:02:51.2]} 9... Be7 {[%clk 0:03:00.1]}
10. O-O-O {[%clk 0:02:51]} 10... b5 {[%clk 0:02:57.4]} 11. Nc6 {[%clk
0:02:49.6]} 11... Qc7 {[%clk 0:02:57.8]} 12. Nxe7 {[%clk 0:02:49.1]} 12... Kxe7
{[%clk 0:02:58.7]} 13. Bd3 {[%clk 0:02:23]} 13... Bb7 {[%clk 0:02:54.9]} 14.
Rhe1 {[%clk 0:02:22.9]} 14... b4 {[%clk 0:02:39.8]} 15. Na4 {[%clk 0:01:45.2]}
15... g5 {[%clk 0:02:13.4]} 16. fxg5 {[%clk 0:01:41.6]} 16... hxg5 {[%clk
0:02:14.3]} 17. Bxg5 {[%clk 0:01:39.6]} 17... Qa5 {[%clk 0:02:13.9]} 18. b3
{[%clk 0:00:51.4]} 18... Rxh2 {[%clk 0:01:52.2]} 19. Bc4 {[%clk 0:00:41.6]}
19... Ke8 {[%clk 0:00:52.5]} 20. Bxf6 {[%clk 0:00:28.3]} 20... Nxf6 {[%clk
0:00:53.4]} 21. Qxd6 {[%clk 0:00:28.3]} 21... Rh7 {[%clk 0:00:30.2]} 22. Nb6
{[%clk 0:00:23.5]} 22... Rc8 {[%clk 0:00:22.9]} 23. Nxc8 {[%clk 0:00:23.3]}
23... Bxc8 {[%clk 0:00:23.8]} 24. Kb1 {[%clk 0:00:23]} 24... Nd7 {[%clk
0:00:22.7]} 25. Bxe6 {[%clk 0:00:20.6]} 25... fxe6 {[%clk 0:00:19]} 26. Qxe6+
{[%clk 0:00:21.5]} 26... Kd8 {[%clk 0:00:19.2]} 27. Qg8+ {[%clk 0:00:20.7]}
27... Kc7 {[%clk 0:00:19.9]} 28. Qxh7 {[%clk 0:00:20.8]} 28... Qe5 {[%clk
0:00:20.4]} 29. Rh1 {[%clk 0:00:19.3]} 29... a5 {[%clk 0:00:20.4]} 30. Qh2
{[%clk 0:00:18.8]} 30... Qxh2 {[%clk 0:00:20.3]} 31. Rxh2 {[%clk 0:00:19.7]} 1-0

[Event "*** Titled Tuesday Blitz"]
[Site "Chess.com"]
[Date "2020.04.07"]
[Round "4"]
[White "erlesfar"]
[Black "plumalka"]
[Result "0-1"]
[WhiteElo "2040"]
[BlackElo "2389"]
[TimeControl "180+1"]
[EndTime "13:40:23 PDT"]
[Termination "plumalka won on time"]

1. d4 {[%clk 0:00:10.9]} 1... Nf6 {[%clk 0:02:58.6]} 2. Nc3 {[%clk 0:00:11.8]}
2... g6 {[%clk 0:02:54.2]} 3. Nf3 {[%clk 0:00:12.7]} 3... Bg7 {[%clk 0:02:54.4]}
4. Bg5 {[%clk 0:00:12.8]} 4... d6 {[%clk 0:02:53.8]} 5. e3 {[%clk 0:00:13]} 5...
O-O {[%clk 0:02:53.6]} 6. Be2 {[%clk 0:00:13.4]} 6... Nbd7 {[%clk 0:02:53.8]} 7.
O-O {[%clk 0:00:14]} 7... Re8 {[%clk 0:02:52.4]} 8. h3 {[%clk 0:00:14.2]} 8...
c6 {[%clk 0:02:52.6]} 9. e4 {[%clk 0:00:14.1]} 9... e5 {[%clk 0:02:52.6]} 10.
dxe5 {[%clk 0:00:14.3]} 10... Nxe5 {[%clk 0:02:48.8]} 11. a4 {[%clk 0:00:15.2]}
11... Nxf3+ {[%clk 0:02:46.8]} 12. Bxf3 {[%clk 0:00:15.4]} 12... Be6 {[%clk
0:02:45.6]} 13. a5 {[%clk 0:00:15.3]} 13... Qc7 {[%clk 0:02:37.9]} 14. Re1
{[%clk 0:00:15]} 14... h6 {[%clk 0:02:35.5]} 15. Bf4 {[%clk 0:00:14.5]} 15...
Rad8 {[%clk 0:02:35]} 16. Qd2 {[%clk 0:00:14.3]} 16... Kh7 {[%clk 0:02:32.3]}
17. Bh2 {[%clk 0:00:13.8]} 17... Qe7 {[%clk 0:02:24.5]} 18. Qe3 {[%clk
0:00:11.6]} 18... a6 {[%clk 0:02:20.8]} 19. Qb6 {[%clk 0:00:11.2]} 19... Rb8
{[%clk 0:01:55.6]} 20. Rad1 {[%clk 0:00:10.9]} 20... Red8 {[%clk 0:01:55.1]} 21.
e5 {[%clk 0:00:10.7]} 21... dxe5 {[%clk 0:01:49.3]} 22. Bxe5 {[%clk 0:00:10.6]}
22... Rbc8 {[%clk 0:01:42.5]} 23. Bg3 {[%clk 0:00:03.7]} 23... Qf8 {[%clk
0:01:08.7]} 24. Na4 {[%clk 0:00:03.6]} 24... Nd5 {[%clk 0:01:00.8]} 25. Bxd5
{[%clk 0:00:03.1]} 25... Bxd5 {[%clk 0:01:01.7]} 26. Nc5 {[%clk 0:00:03.1]}
26... Re8 {[%clk 0:00:40.1]} 27. Nxb7 {[%clk 0:00:03.2]} 27... Rb8 {[%clk
0:00:39.3]} 28. Bxb8 {[%clk 0:00:01.7]} 28... Rxb8 {[%clk 0:00:40.2]} 29. Qc7
{[%clk 0:00:02]} 29... Bxb2 {[%clk 0:00:36.6]} 30. Nd6 {[%clk 0:00:01.1]} 30...
Bg7 {[%clk 0:00:33]} 0-1

[Event "*** Titled Tuesday Blitz"]
[Site "Chess.com"]
[Date "2020.04.07"]
[Round "4"]
[White "annacramling"]
[Black "AyMitecK"]
[Result "0-1"]
[WhiteElo "1956"]
[BlackElo "2282"]
[TimeControl "180+1"]
[EndTime "13:40:23 PDT"]
[Termination "AyMitecK won on time"]

1. d4 {[%clk 0:03:00.9]} 1... Nf6 {[%clk 0:02:53.8]} 2. c4 {[%clk 0:02:58]} 2...
e6 {[%clk 0:02:53.5]} 3. Nf3 {[%clk 0:02:55.9]} 3... c5 {[%clk 0:02:52.9]} 4. d5
{[%clk 0:02:52.3]} 4... exd5 {[%clk 0:02:53.8]} 5. cxd5 {[%clk 0:02:52.4]} 5...
d6 {[%clk 0:02:54]} 6. Nc3 {[%clk 0:02:51.9]} 6... g6 {[%clk 0:02:53.8]} 7. e4
{[%clk 0:02:52.1]} 7... Bg7 {[%clk 0:02:53.1]} 8. Be2 {[%clk 0:02:41.2]} 8...
O-O {[%clk 0:02:48.9]} 9. O-O {[%clk 0:02:40.7]} 9... a6 {[%clk 0:02:35.1]} 10.
a4 {[%clk 0:02:39.9]} 10... Bg4 {[%clk 0:02:32.8]} 11. h3 {[%clk 0:02:26.8]}
11... Bxf3 {[%clk 0:02:32.6]} 12. Bxf3 {[%clk 0:02:26.9]} 12... Nbd7 {[%clk
0:02:32.8]} 13. Be2 {[%clk 0:02:26.7]} 13... Qe7 {[%clk 0:02:28]} 14. Qc2 {[%clk
0:02:22.9]} 14... Rfe8 {[%clk 0:02:22.9]} 15. Bg5 {[%clk 0:01:36.3]} 15... h6
{[%clk 0:02:18.7]} 16. Bh4 {[%clk 0:01:36.3]} 16... g5 {[%clk 0:01:45.8]} 17.
Bg3 {[%clk 0:01:36.2]} 17... Ne5 {[%clk 0:01:46.2]} 18. f4 {[%clk 0:01:28.2]}
18... gxf4 {[%clk 0:01:32.3]} 19. Bxf4 {[%clk 0:01:29.1]} 19... Ng6 {[%clk
0:01:32.2]} 20. Bd3 {[%clk 0:01:00.3]} 20... Nxf4 {[%clk 0:01:29.3]} 21. Rxf4
{[%clk 0:00:59.8]} 21... Nd7 {[%clk 0:01:28.5]} 22. Raf1 {[%clk 0:00:58.1]}
22... Ne5 {[%clk 0:01:27.4]} 23. Be2 {[%clk 0:00:54.4]} 23... Rab8 {[%clk
0:01:25.6]} 24. Bh5 {[%clk 0:00:54.3]} 24... Rf8 {[%clk 0:01:22]} 25. Nd1 {[%clk
0:00:40]} 25... b5 {[%clk 0:00:53.2]} 26. axb5 {[%clk 0:00:39.5]} 26... Rxb5
{[%clk 0:00:52.7]} 27. Ne3 {[%clk 0:00:39.8]} 27... Qg5 {[%clk 0:00:53.1]} 28.
Be2 {[%clk 0:00:32.3]} 28... Ng6 {[%clk 0:00:49.1]} 29. Bxb5 {[%clk 0:00:30.9]}
29... Nxf4 {[%clk 0:00:45.4]} 30. Bxa6 {[%clk 0:00:08.5]} 30... Bd4 {[%clk
0:00:40.7]} 31. Qb3 {[%clk 0:00:04.1]} 31... Nxh3+ {[%clk 0:00:31]} 32. Kh1
{[%clk 0:00:01.7]} 32... Nf4 {[%clk 0:00:27.4]} 0-1